{"text_format":"1","workbook":"xlsx","n_sheets":4,"sheets":["Sammanställning","Täthetsschema","ToDo","Admin"],"not_rendered":{"charts":0,"images":1,"macros":1,"external_links":0,"defined_names":1,"comments":0,"pivot_tables":0},"unopened":[],"bounds":{"document_bytes":16777216,"sheet_cells":100000,"rows_first":2000,"rows_last":500,"rows_between":2000,"halvings":0,"cell_chars":16384,"cell_head_chars":4096},"cells_cut":0,"cells_raw":0,"read":"whole","date_system":"1900"}

{"sheet":"Sammanställning","index":0,"n_rows":29,"n_cols":5,"rows_kept":29,"cut":false,"hidden":false,"merged":[[9,1,9,5],[22,6,22,19],[21,6,21,18]]}
[]
[]
[]
[]
[null,"Bilaga 06 - Täthetsschema med sammanställning "]
[]
[null,"HVB för barn och unga 2017"]
[null,"Projektnummer: 10353"]
[]
[]
[null,"Anbudsgivare (företagsnamn):"]
[]
[null,"Organisationsnummer:"]
[]
[null,"Verksamhet"]
[]
[]
[]
[]
[]
[]
[null,null,"Svar"]
[null,"A. Ange här HVB hemmets faktiska platsantal, se punkt 4.2.j."]
[null,"B. Andelen redovisad schemalagd tid som utförs av personal som genomgått motsvarande minst 2 år på heltid relevant eftergymnasial utbildning och som inte har relevant högskoleutbildning (180 hp) av den totala schemalagda tiden.",{"$f":"IFERROR(SUMIFS(Täthetsschema!$AC$235:$AC$262,Täthetsschema!$C$235:$C$262,\"2 år eftergymn. utb.\")/Täthetsschema!$AC$263,\"\")","v":""}]
[null,"C. Andel redovisad schemalagd tid som utförs av personal med genomgången relevant högskoleutbildning motsvarande 180 hp av den totala schemalagda tiden.",{"$f":"IFERROR((SUMIFS(Täthetsschema!$AC$235:$AC$262,Täthetsschema!$C$235:$C$262,\"Högskola 180 hp\"))/Täthetsschema!$AC$263,\"\")","v":""}]
[null,"D. Andelen redovisad schemalagd tid som utförs av personal som genomgått motsvarande minst 2-år relevant eftergymnasial utbildning och/eller relevant  högskoleutbildning  omfattande minst 180 hp av den totala schemalagda tiden, punkterna B + C ovan.",{"$f":"IFERROR((SUMIFS(Täthetsschema!$AC$235:$AC$262,Täthetsschema!$C$235:$C$262,\"Högskola 180 hp\")+SUMIFS(Täthetsschema!$AC$235:$AC$262,Täthetsschema!$C$235:$C$262,\"2 år eftergymn. utb.\"))/Täthetsschema!$AC$263,\"\")","v":""},null,0]
[null,"E. Andelen schemalagda veckotimmar som utförs av personal som varken uppfyller punkten C eller D.",{"$f":"IFERROR(1-C26,\"\")","v":""}]
[null,"F. Det totala antalet schemalagda veckotimmar enligt av er ifyllt täthetsschema.",{"$f":"IFERROR(Täthetsschema!AC2,\"\")","v":0}]
[null,"G. Nyckeltal för personalbemanning utifrån ifyllt täthetsschema och angivet antal faktiska platser.",{"$f":"IFERROR((Täthetsschema!AC2/37)/C23,\"\")","v":""}]

{"sheet":"Täthetsschema","index":1,"n_rows":263,"n_cols":29,"rows_kept":263,"cut":false,"hidden":false,"merged":[[38,1,38,27],[0,1,0,27],[1,24,1,27],[6,1,6,27],[3,1,3,27],[232,1,232,27],[70,1,70,27],[102,1,102,27],[134,1,134,27],[166,1,166,27],[198,1,198,27]]}
[null,null,null,null,null,null,null,null,null,null,null,null,null,null,null,null,null,null,null,null,null,null,null,null,null,null,null,null,"Bilaga 6"]
[null,null,null,null,null,null,null,null,null,null,null,null,null,null,null,null,null,null,null,null,null,null,null,null,"Antal schemalagda timmar totalt under veckan.",null,null,null,{"$f":"AC37+AC69+AC101+AC133+AC165+AC197+AC229","v":0}]
[]
[null,"Personalen ska i täthetsschemat varje veckodag inbördes vara ordnade på samma sätt oavsett om de denna veckodag är schemalagd eller inte så att det är möjligt att följa hur var personal med yrkeskategorir och utbildningsnivå är schemalagd under en tänkt  genomsnittlig vecka under veckans samtliga sju dagar. Ange den schemalagda tiden per timme i decimalform till exempel; 1,0 0,5, 0,25). Obs! 0,25 = 15 min, 0,50 = 30 min och 0,75=45 min."]
[]
[]
[null,"Måndagar",null,null,null,null,null,null,null,null,null,null,null,null,null,null,null,null,null,null,null,null,null,null,null,null,null,null,"Summa"]
[null,"Yrkeskategori","Utbildningsnivå","Utbildning","01.00","02.00","03.00","04.00","05.00","06.00","07.00","08.00","09.00","10.00","11.00","12.00","13.00","14.00","15.00","16.00","17.00","18.00","19.00","20.00","21.00","22.00","23.00","24.00"]
[1,null,null,null,null,null,null,null,null,null,null,null,null,null,null,null,null,null,null,null,null,null,null,null,null,null,null,null,{"$f":"SUM(E9:AB9)","v":0}]
[2,null,null,null,null,null,null,null,null,null,null,null,null,null,null,null,null,null,null,null,null,null,null,null,null,null,null,null,{"$f":"SUM(E10:AB10)","v":0}]
[3,null,null,null,null,null,null,null,null,null,null,null,null,null,null,null,null,null,null,null,null,null,null,null,null,null,null,null,0]
[4,null,null,null,null,null,null,null,null,null,null,null,null,null,null,null,null,null,null,null,null,null,null,null,null,null,null,null,0]
[5,null,null,null,null,null,null,null,null,null,null,null,null,null,null,null,null,null,null,null,null,null,null,null,null,null,null,null,0]
[6,null,null,null,null,null,null,null,null,null,null,null,null,null,null,null,null,null,null,null,null,null,null,null,null,null,null,null,0]
[7,null,null,null,null,null,null,null,null,null,null,null,null,null,null,null,null,null,null,null,null,null,null,null,null,null,null,null,0]
[8,null,null,null,null,null,null,null,null,null,null,null,null,null,null,null,null,null,null,null,null,null,null,null,null,null,null,null,0]
[9,null,null,null,null,null,null,null,null,null,null,null,null,null,null,null,null,null,null,null,null,null,null,null,null,null,null,null,0]
[10,null,null,null,null,null,null,null,null,null,null,null,null,null,null,null,null,null,null,null,null,null,null,null,null,null,null,null,0]
[11,null,null,null,null,null,null,null,null,null,null,null,null,null,null,null,null,null,null,null,null,null,null,null,null,null,null,null,0]
[12,null,null,null,null,null,null,null,null,null,null,null,null,null,null,null,null,null,null,null,null,null,null,null,null,null,null,null,0]
[13,null,null,null,null,null,null,null,null,null,null,null,null,null,null,null,null,null,null,null,null,null,null,null,null,null,null,null,0]
[14,null,null,null,null,null,null,null,null,null,null,null,null,null,null,null,null,null,null,null,null,null,null,null,null,null,null,null,0]
[15,null,null,null,null,null,null,null,null,null,null,null,null,null,null,null,null,null,null,null,null,null,null,null,null,null,null,null,0]
[16,null,null,null,null,null,null,null,null,null,null,null,null,null,null,null,null,null,null,null,null,null,null,null,null,null,null,null,0]
[17,null,null,null,null,null,null,null,null,null,null,null,null,null,null,null,null,null,null,null,null,null,null,null,null,null,null,null,0]
[18,null,null,null,null,null,null,null,null,null,null,null,null,null,null,null,null,null,null,null,null,null,null,null,null,null,null,null,0]
[19,null,null,null,null,null,null,null,null,null,null,null,null,null,null,null,null,null,null,null,null,null,null,null,null,null,null,null,0]
[20,null,null,null,null,null,null,null,null,null,null,null,null,null,null,null,null,null,null,null,null,null,null,null,null,null,null,null,0]
[21,null,null,null,null,null,null,null,null,null,null,null,null,null,null,null,null,null,null,null,null,null,null,null,null,null,null,null,0]
[22,null,null,null,null,null,null,null,null,null,null,null,null,null,null,null,null,null,null,null,null,null,null,null,null,null,null,null,0]
[23,null,null,null,null,null,null,null,null,null,null,null,null,null,null,null,null,null,null,null,null,null,null,null,null,null,null,null,0]
[24,null,null,null,null,null,null,null,null,null,null,null,null,null,null,null,null,null,null,null,null,null,null,null,null,null,null,null,0]
[25,null,null,null,null,null,null,null,null,null,null,null,null,null,null,null,null,null,null,null,null,null,null,null,null,null,null,null,0]
[26,null,null,null,null,null,null,null,null,null,null,null,null,null,null,null,null,null,null,null,null,null,null,null,null,null,null,null,0]
[27,null,null,null,null,null,null,null,null,null,null,null,null,null,null,null,null,null,null,null,null,null,null,null,null,null,null,null,0]
[28,null,null,null,null,null,null,null,null,null,null,null,null,null,null,null,null,null,null,null,null,null,null,null,null,null,null,null,0]
[null,"Summa",null,null,{"$f":"SUM(E9:E36)","v":0},0,0,0,0,0,0,0,0,0,0,0,0,0,0,0,0,0,0,0,0,0,0,0,0]
[]
[null,"Tisdagar",null,null,null,null,null,null,null,null,null,null,null,null,null,null,null,null,null,null,null,null,null,null,null,null,null,null,"Summa"]
[null,"Yrkeskategori","Utbildningsnivå","Utbildning","01.00","02.00","03.00","04.00","05.00","06.00","07.00","08.00","09.00","10.00","11.00","12.00","13.00","14.00","15.00","16.00","17.00","18.00","19.00","20.00","21.00","22.00","23.00","24.00"]
[1,{"$f":"IF(B9=\"\",\"\",B9)","v":""},{"$f":"IF(C9=\"\",\"\",C9)","v":""},{"$f":"IF(D9=\"\",\"\",D9)","v":""},null,null,null,null,null,null,null,null,null,null,null,null,null,null,null,null,null,null,null,null,null,null,null,null,{"$f":"SUM(E41:AB41)","v":0}]
[2,{"$f":"IF(B10=\"\",\"\",B10)","v":""},"","",null,null,null,null,null,null,null,null,null,null,null,null,null,null,null,null,null,null,null,null,null,null,null,null,{"$f":"SUM(E42:AB42)","v":0}]
[3,{"$f":"IF(B11=\"\",\"\",B11)","v":""},"","",null,null,null,null,null,null,null,null,null,null,null,null,null,null,null,null,null,null,null,null,null,null,null,null,0]
[4,{"$f":"IF(B12=\"\",\"\",B12)","v":""},"","",null,null,null,null,null,null,null,null,null,null,null,null,null,null,null,null,null,null,null,null,null,null,null,null,0]
[5,{"$f":"IF(B13=\"\",\"\",B13)","v":""},"","",null,null,null,null,null,null,null,null,null,null,null,null,null,null,null,null,null,null,null,null,null,null,null,null,0]
[6,{"$f":"IF(B14=\"\",\"\",B14)","v":""},"","",null,null,null,null,null,null,null,null,null,null,null,null,null,null,null,null,null,null,null,null,null,null,null,null,0]
[7,{"$f":"IF(B15=\"\",\"\",B15)","v":""},"","",null,null,null,null,null,null,null,null,null,null,null,null,null,null,null,null,null,null,null,null,null,null,null,null,0]
[8,{"$f":"IF(B16=\"\",\"\",B16)","v":""},"","",null,null,null,null,null,null,null,null,null,null,null,null,null,null,null,null,null,null,null,null,null,null,null,null,0]
[9,{"$f":"IF(B17=\"\",\"\",B17)","v":""},"","",null,null,null,null,null,null,null,null,null,null,null,null,null,null,null,null,null,null,null,null,null,null,null,null,{"$f":"SUM(E49:AB49)","v":0}]
[10,{"$f":"IF(B18=\"\",\"\",B18)","v":""},"","",null,null,null,null,null,null,null,null,null,null,null,null,null,null,null,null,null,null,null,null,null,null,null,null,0]
[11,{"$f":"IF(B19=\"\",\"\",B19)","v":""},"","",null,null,null,null,null,null,null,null,null,null,null,null,null,null,null,null,null,null,null,null,null,null,null,null,0]
[12,{"$f":"IF(B20=\"\",\"\",B20)","v":""},"","",null,null,null,null,null,null,null,null,null,null,null,null,null,null,null,null,null,null,null,null,null,null,null,null,0]
[13,{"$f":"IF(B21=\"\",\"\",B21)","v":""},"","",null,null,null,null,null,null,null,null,null,null,null,null,null,null,null,null,null,null,null,null,null,null,null,null,0]
[14,{"$f":"IF(B22=\"\",\"\",B22)","v":""},"","",null,null,null,null,null,null,null,null,null,null,null,null,null,null,null,null,null,null,null,null,null,null,null,null,0]
[15,{"$f":"IF(B23=\"\",\"\",B23)","v":""},"","",null,null,null,null,null,null,null,null,null,null,null,null,null,null,null,null,null,null,null,null,null,null,null,null,0]
[16,{"$f":"IF(B24=\"\",\"\",B24)","v":""},"","",null,null,null,null,null,null,null,null,null,null,null,null,null,null,null,null,null,null,null,null,null,null,null,null,0]
[17,{"$f":"IF(B25=\"\",\"\",B25)","v":""},"","",null,null,null,null,null,null,null,null,null,null,null,null,null,null,null,null,null,null,null,null,null,null,null,null,0]
[18,{"$f":"IF(B26=\"\",\"\",B26)","v":""},"","",null,null,null,null,null,null,null,null,null,null,null,null,null,null,null,null,null,null,null,null,null,null,null,null,0]
[19,{"$f":"IF(B27=\"\",\"\",B27)","v":""},"","",null,null,null,null,null,null,null,null,null,null,null,null,null,null,null,null,null,null,null,null,null,null,null,null,0]
[20,{"$f":"IF(B28=\"\",\"\",B28)","v":""},"","",null,null,null,null,null,null,null,null,null,null,null,null,null,null,null,null,null,null,null,null,null,null,null,null,0]
[21,{"$f":"IF(B29=\"\",\"\",B29)","v":""},"","",null,null,null,null,null,null,null,null,null,null,null,null,null,null,null,null,null,null,null,null,null,null,null,null,{"$f":"SUM(E61:AB61)","v":0}]
[22,{"$f":"IF(B30=\"\",\"\",B30)","v":""},"","",null,null,null,null,null,null,null,null,null,null,null,null,null,null,null,null,null,null,null,null,null,null,null,null,0]
[23,{"$f":"IF(B31=\"\",\"\",B31)","v":""},"","",null,null,null,null,null,null,null,null,null,null,null,null,null,null,null,null,null,null,null,null,null,null,null,null,0]
[24,{"$f":"IF(B32=\"\",\"\",B32)","v":""},"","",null,null,null,null,null,null,null,null,null,null,null,null,null,null,null,null,null,null,null,null,null,null,null,null,0]
[25,{"$f":"IF(B33=\"\",\"\",B33)","v":""},"","",null,null,null,null,null,null,null,null,null,null,null,null,null,null,null,null,null,null,null,null,null,null,null,null,0]
[26,{"$f":"IF(B34=\"\",\"\",B34)","v":""},"","",null,null,null,null,null,null,null,null,null,null,null,null,null,null,null,null,null,null,null,null,null,null,null,null,0]
[27,{"$f":"IF(B35=\"\",\"\",B35)","v":""},"","",null,null,null,null,null,null,null,null,null,null,null,null,null,null,null,null,null,null,null,null,null,null,null,null,0]
[28,{"$f":"IF(B36=\"\",\"\",B36)","v":""},"","",null,null,null,null,null,null,null,null,null,null,null,null,null,null,null,null,null,null,null,null,null,null,null,null,0]
[null,"Summa",null,null,{"$f":"SUM(E41:E68)","v":0},{"$f":"SUM(F41:F68)","v":0},{"$f":"SUM(G41:G68)","v":0},0,{"$f":"SUM(I41:I68)","v":0},0,0,0,0,0,0,0,0,0,0,0,0,0,0,0,0,0,0,0,{"$f":"SUM(AC41:AC68)","v":0}]
[]
[null,"Onsdag",null,null,null,null,null,null,null,null,null,null,null,null,null,null,null,null,null,null,null,null,null,null,null,null,null,null,"Summa"]
[null,"Yrkeskategori","Utbildningsnivå","Utbildning","01.00","02.00","03.00","04.00","05.00","06.00","07.00","08.00","09.00","10.00","11.00","12.00","13.00","14.00","15.00","16.00","17.00","18.00","19.00","20.00","21.00","22.00","23.00","24.00"]
[1,{"$f":"IF(B41=\"\",\"\",B41)","v":""},"","",null,null,null,null,null,null,null,null,null,null,null,null,null,null,null,null,null,null,null,null,null,null,null,null,{"$f":"SUM(E73:AB73)","v":0}]
[2,"","","",null,null,null,null,null,null,null,null,null,null,null,null,null,null,null,null,null,null,null,null,null,null,null,null,{"$f":"SUM(E74:AB74)","v":0}]
[3,"","","",null,null,null,null,null,null,null,null,null,null,null,null,null,null,null,null,null,null,null,null,null,null,null,null,0]
[4,"","","",null,null,null,null,null,null,null,null,null,null,null,null,null,null,null,null,null,null,null,null,null,null,null,null,0]
[5,"","","",null,null,null,null,null,null,null,null,null,null,null,null,null,null,null,null,null,null,null,null,null,null,null,null,0]
[6,"","","",null,null,null,null,null,null,null,null,null,null,null,null,null,null,null,null,null,null,null,null,null,null,null,null,0]
[7,"","","",null,null,null,null,null,null,null,null,null,null,null,null,null,null,null,null,null,null,null,null,null,null,null,null,0]
[8,"","","",null,null,null,null,null,null,null,null,null,null,null,null,null,null,null,null,null,null,null,null,null,null,null,null,0]
[9,"","","",null,null,null,null,null,null,null,null,null,null,null,null,null,null,null,null,null,null,null,null,null,null,null,null,0]
[10,"","","",null,null,null,null,null,null,null,null,null,null,null,null,null,null,null,null,null,null,null,null,null,null,null,null,0]
[11,"","","",null,null,null,null,null,null,null,null,null,null,null,null,null,null,null,null,null,null,null,null,null,null,null,null,0]
[12,"","","",null,null,null,null,null,null,null,null,null,null,null,null,null,null,null,null,null,null,null,null,null,null,null,null,0]
[13,"","","",null,null,null,null,null,null,null,null,null,null,null,null,null,null,null,null,null,null,null,null,null,null,null,null,0]
[14,"","","",null,null,null,null,null,null,null,null,null,null,null,null,null,null,null,null,null,null,null,null,null,null,null,null,0]
[15,"","","",null,null,null,null,null,null,null,null,null,null,null,null,null,null,null,null,null,null,null,null,null,null,null,null,0]
[16,"","","",null,null,null,null,null,null,null,null,null,null,null,null,null,null,null,null,null,null,null,null,null,null,null,null,0]
[17,"","","",null,null,null,null,null,null,null,null,null,null,null,null,null,null,null,null,null,null,null,null,null,null,null,null,0]
[18,"","","",null,null,null,null,null,null,null,null,null,null,null,null,null,null,null,null,null,null,null,null,null,null,null,null,0]
[19,"","","",null,null,null,null,null,null,null,null,null,null,null,null,null,null,null,null,null,null,null,null,null,null,null,null,0]
[20,{"$f":"IF(B60=\"\",\"\",B60)","v":""},"","",null,null,null,null,null,null,null,null,null,null,null,null,null,null,null,null,null,null,null,null,null,null,null,null,0]
[21,{"$f":"IF(B61=\"\",\"\",B61)","v":""},"","",null,null,null,null,null,null,null,null,null,null,null,null,null,null,null,null,null,null,null,null,null,null,null,null,0]
[22,{"$f":"IF(B62=\"\",\"\",B62)","v":""},"","",null,null,null,null,null,null,null,null,null,null,null,null,null,null,null,null,null,null,null,null,null,null,null,null,0]
[23,{"$f":"IF(B63=\"\",\"\",B63)","v":""},"","",null,null,null,null,null,null,null,null,null,null,null,null,null,null,null,null,null,null,null,null,null,null,null,null,0]
[24,{"$f":"IF(B64=\"\",\"\",B64)","v":""},"","",null,null,null,null,null,null,null,null,null,null,null,null,null,null,null,null,null,null,null,null,null,null,null,null,0]
[25,{"$f":"IF(B65=\"\",\"\",B65)","v":""},"","",null,null,null,null,null,null,null,null,null,null,null,null,null,null,null,null,null,null,null,null,null,null,null,null,0]
[26,{"$f":"IF(B66=\"\",\"\",B66)","v":""},"","",null,null,null,null,null,null,null,null,null,null,null,null,null,null,null,null,null,null,null,null,null,null,null,null,0]
[27,{"$f":"IF(B67=\"\",\"\",B67)","v":""},"","",null,null,null,null,null,null,null,null,null,null,null,null,null,null,null,null,null,null,null,null,null,null,null,null,0]
[28,"","","",null,null,null,null,null,null,null,null,null,null,null,null,null,null,null,null,null,null,null,null,null,null,null,null,{"$f":"SUM(E100:AB100)","v":0}]
[null,"Summa",null,null,{"$f":"SUM(E73:E100)","v":0},0,0,0,0,0,0,0,0,0,0,0,0,0,0,0,0,0,0,0,0,0,0,0,{"$f":"SUM(AC73:AC100)","v":0}]
[]
[null,"Torsdag",null,null,null,null,null,null,null,null,null,null,null,null,null,null,null,null,null,null,null,null,null,null,null,null,null,null,"Summa"]
[null,"Yrkeskategori","Utbildningsnivå","Utbildning","01.00","02.00","03.00","04.00","05.00","06.00","07.00","08.00","09.00","10.00","11.00","12.00","13.00","14.00","15.00","16.00","17.00","18.00","19.00","20.00","21.00","22.00","23.00","24.00"]
[1,{"$f":"IF(B73=\"\",\"\",B73)","v":""},"","",null,null,null,null,null,null,null,null,null,null,null,null,null,null,null,null,null,null,null,null,null,null,null,null,{"$f":"SUM(E105:AB105)","v":0}]
[2,"","","",null,null,null,null,null,null,null,null,null,null,null,null,null,null,null,null,null,null,null,null,null,null,null,null,{"$f":"SUM(E106:AB106)","v":0}]
[3,"","","",null,null,null,null,null,null,null,null,null,null,null,null,null,null,null,null,null,null,null,null,null,null,null,null,0]
[4,"","","",null,null,null,null,null,null,null,null,null,null,null,null,null,null,null,null,null,null,null,null,null,null,null,null,0]
[5,"","","",null,null,null,null,null,null,null,null,null,null,null,null,null,null,null,null,null,null,null,null,null,null,null,null,0]
[6,"","","",null,null,null,null,null,null,null,null,null,null,null,null,null,null,null,null,null,null,null,null,null,null,null,null,0]
[7,"","","",null,null,null,null,null,null,null,null,null,null,null,null,null,null,null,null,null,null,null,null,null,null,null,null,0]
[8,"","","",null,null,null,null,null,null,null,null,null,null,null,null,null,null,null,null,null,null,null,null,null,null,null,null,0]
[9,"","","",null,null,null,null,null,null,null,null,null,null,null,null,null,null,null,null,null,null,null,null,null,null,null,null,0]
[10,"","","",null,null,null,null,null,null,null,null,null,null,null,null,null,null,null,null,null,null,null,null,null,null,null,null,0]
[11,"","","",null,null,null,null,null,null,null,null,null,null,null,null,null,null,null,null,null,null,null,null,null,null,null,null,0]
[12,"","","",null,null,null,null,null,null,null,null,null,null,null,null,null,null,null,null,null,null,null,null,null,null,null,null,0]
[13,"","","",null,null,null,null,null,null,null,null,null,null,null,null,null,null,null,null,null,null,null,null,null,null,null,null,0]
[14,"","","",null,null,null,null,null,null,null,null,null,null,null,null,null,null,null,null,null,null,null,null,null,null,null,null,0]
[15,"","","",null,null,null,null,null,null,null,null,null,null,null,null,null,null,null,null,null,null,null,null,null,null,null,null,0]
[16,"","","",null,null,null,null,null,null,null,null,null,null,null,null,null,null,null,null,null,null,null,null,null,null,null,null,0]
[17,"","","",null,null,null,null,null,null,null,null,null,null,null,null,null,null,null,null,null,null,null,null,null,null,null,null,0]
[18,"","","",null,null,null,null,null,null,null,null,null,null,null,null,null,null,null,null,null,null,null,null,null,null,null,null,0]
[19,"","","",null,null,null,null,null,null,null,null,null,null,null,null,null,null,null,null,null,null,null,null,null,null,null,null,0]
[20,"","","",null,null,null,null,null,null,null,null,null,null,null,null,null,null,null,null,null,null,null,null,null,null,null,null,0]
[21,"","","",null,null,null,null,null,null,null,null,null,null,null,null,null,null,null,null,null,null,null,null,null,null,null,null,0]
[22,"","","",null,null,null,null,null,null,null,null,null,null,null,null,null,null,null,null,null,null,null,null,null,null,null,null,0]
[23,{"$f":"IF(B95=\"\",\"\",B95)","v":""},"","",null,null,null,null,null,null,null,null,null,null,null,null,null,null,null,null,null,null,null,null,null,null,null,null,0]
[24,{"$f":"IF(B96=\"\",\"\",B96)","v":""},"","",null,null,null,null,null,null,null,null,null,null,null,null,null,null,null,null,null,null,null,null,null,null,null,null,0]
[25,{"$f":"IF(B97=\"\",\"\",B97)","v":""},"","",null,null,null,null,null,null,null,null,null,null,null,null,null,null,null,null,null,null,null,null,null,null,null,null,0]
[26,{"$f":"IF(B98=\"\",\"\",B98)","v":""},"","",null,null,null,null,null,null,null,null,null,null,null,null,null,null,null,null,null,null,null,null,null,null,null,null,0]
[27,"","","",null,null,null,null,null,null,null,null,null,null,null,null,null,null,null,null,null,null,null,null,null,null,null,null,0]
[28,"","","",null,null,null,null,null,null,null,null,null,null,null,null,null,null,null,null,null,null,null,null,null,null,null,null,{"$f":"SUM(E132:AB132)","v":0}]
[null,"Summa",null,null,{"$f":"SUM(E105:E132)","v":0},0,0,0,0,0,0,0,0,0,0,0,0,0,0,0,0,0,0,0,0,0,0,0,{"$f":"SUM(AC105:AC132)","v":0}]
[]
[null,"Fredag",null,null,null,null,null,null,null,null,null,null,null,null,null,null,null,null,null,null,null,null,null,null,null,null,null,null,"Summa"]
[null,"Yrkeskategori","Utbildningsnivå","Utbildning","01.00","02.00","03.00","04.00","05.00","06.00","07.00","08.00","09.00","10.00","11.00","12.00","13.00","14.00","15.00","16.00","17.00","18.00","19.00","20.00","21.00","22.00","23.00","24.00"]
[1,{"$f":"IF(B105=\"\",\"\",B105)","v":""},{"$f":"IF(C105=\"\",\"\",C105)","v":""},{"$f":"IF(D105=\"\",\"\",D105)","v":""},null,null,null,null,null,null,null,null,null,null,null,null,null,null,null,null,null,null,null,null,null,null,null,null,{"$f":"SUM(E137:AB137)","v":0}]
[2,{"$f":"IF(B106=\"\",\"\",B106)","v":""},"","",null,null,null,null,null,null,null,null,null,null,null,null,null,null,null,null,null,null,null,null,null,null,null,null,{"$f":"SUM(E138:AB138)","v":0}]
[3,{"$f":"IF(B107=\"\",\"\",B107)","v":""},"","",null,null,null,null,null,null,null,null,null,null,null,null,null,null,null,null,null,null,null,null,null,null,null,null,0]
[4,{"$f":"IF(B108=\"\",\"\",B108)","v":""},"","",null,null,null,null,null,null,null,null,null,null,null,null,null,null,null,null,null,null,null,null,null,null,null,null,0]
[5,{"$f":"IF(B109=\"\",\"\",B109)","v":""},"","",null,null,null,null,null,null,null,null,null,null,null,null,null,null,null,null,null,null,null,null,null,null,null,null,0]
[6,{"$f":"IF(B110=\"\",\"\",B110)","v":""},"","",null,null,null,null,null,null,null,null,null,null,null,null,null,null,null,null,null,null,null,null,null,null,null,null,0]
[7,{"$f":"IF(B111=\"\",\"\",B111)","v":""},"","",null,null,null,null,null,null,null,null,null,null,null,null,null,null,null,null,null,null,null,null,null,null,null,null,0]
[8,{"$f":"IF(B112=\"\",\"\",B112)","v":""},"","",null,null,null,null,null,null,null,null,null,null,null,null,null,null,null,null,null,null,null,null,null,null,null,null,0]
[9,{"$f":"IF(B113=\"\",\"\",B113)","v":""},"","",null,null,null,null,null,null,null,null,null,null,null,null,null,null,null,null,null,null,null,null,null,null,null,null,0]
[10,{"$f":"IF(B114=\"\",\"\",B114)","v":""},"","",null,null,null,null,null,null,null,null,null,null,null,null,null,null,null,null,null,null,null,null,null,null,null,null,0]
[11,{"$f":"IF(B115=\"\",\"\",B115)","v":""},"","",null,null,null,null,null,null,null,null,null,null,null,null,null,null,null,null,null,null,null,null,null,null,null,null,0]
[12,{"$f":"IF(B116=\"\",\"\",B116)","v":""},"","",null,null,null,null,null,null,null,null,null,null,null,null,null,null,null,null,null,null,null,null,null,null,null,null,0]
[13,{"$f":"IF(B117=\"\",\"\",B117)","v":""},"","",null,null,null,null,null,null,null,null,null,null,null,null,null,null,null,null,null,null,null,null,null,null,null,null,0]
[14,{"$f":"IF(B118=\"\",\"\",B118)","v":""},"","",null,null,null,null,null,null,null,null,null,null,null,null,null,null,null,null,null,null,null,null,null,null,null,null,0]
[15,{"$f":"IF(B119=\"\",\"\",B119)","v":""},"","",null,null,null,null,null,null,null,null,null,null,null,null,null,null,null,null,null,null,null,null,null,null,null,null,0]
[16,{"$f":"IF(B120=\"\",\"\",B120)","v":""},"","",null,null,null,null,null,null,null,null,null,null,null,null,null,null,null,null,null,null,null,null,null,null,null,null,0]
[17,{"$f":"IF(B121=\"\",\"\",B121)","v":""},"","",null,null,null,null,null,null,null,null,null,null,null,null,null,null,null,null,null,null,null,null,null,null,null,null,0]
[18,{"$f":"IF(B122=\"\",\"\",B122)","v":""},"","",null,null,null,null,null,null,null,null,null,null,null,null,null,null,null,null,null,null,null,null,null,null,null,null,0]
[19,{"$f":"IF(B123=\"\",\"\",B123)","v":""},"","",null,null,null,null,null,null,null,null,null,null,null,null,null,null,null,null,null,null,null,null,null,null,null,null,0]
[20,{"$f":"IF(B124=\"\",\"\",B124)","v":""},"","",null,null,null,null,null,null,null,null,null,null,null,null,null,null,null,null,null,null,null,null,null,null,null,null,0]
[21,{"$f":"IF(B125=\"\",\"\",B125)","v":""},"","",null,null,null,null,null,null,null,null,null,null,null,null,null,null,null,null,null,null,null,null,null,null,null,null,0]
[22,{"$f":"IF(B126=\"\",\"\",B126)","v":""},"","",null,null,null,null,null,null,null,null,null,null,null,null,null,null,null,null,null,null,null,null,null,null,null,null,0]
[23,{"$f":"IF(B127=\"\",\"\",B127)","v":""},"","",null,null,null,null,null,null,null,null,null,null,null,null,null,null,null,null,null,null,null,null,null,null,null,null,0]
[24,{"$f":"IF(B128=\"\",\"\",B128)","v":""},"","",null,null,null,null,null,null,null,null,null,null,null,null,null,null,null,null,null,null,null,null,null,null,null,null,0]
[25,{"$f":"IF(B129=\"\",\"\",B129)","v":""},"","",null,null,null,null,null,null,null,null,null,null,null,null,null,null,null,null,null,null,null,null,null,null,null,null,0]
[26,{"$f":"IF(B130=\"\",\"\",B130)","v":""},"","",null,null,null,null,null,null,null,null,null,null,null,null,null,null,null,null,null,null,null,null,null,null,null,null,0]
[27,{"$f":"IF(B131=\"\",\"\",B131)","v":""},"","",null,null,null,null,null,null,null,null,null,null,null,null,null,null,null,null,null,null,null,null,null,null,null,null,0]
[28,{"$f":"IF(B132=\"\",\"\",B132)","v":""},"","",null,null,null,null,null,null,null,null,null,null,null,null,null,null,null,null,null,null,null,null,null,null,null,null,0]
[null,"Summa",null,null,{"$f":"SUM(E137:E164)","v":0},0,0,0,0,0,0,0,0,0,0,0,0,0,0,0,0,0,0,0,0,0,0,0,{"$f":"SUM(AC137:AC164)","v":0}]
[]
[null,"Lördag",null,null,null,null,null,null,null,null,null,null,null,null,null,null,null,null,null,null,null,null,null,null,null,null,null,null,"Summa"]
[null,"Yrkeskategori","Utbildningsnivå","Utbildning","01.00","02.00","03.00","04.00","05.00","06.00","07.00","08.00","09.00","10.00","11.00","12.00","13.00","14.00","15.00","16.00","17.00","18.00","19.00","20.00","21.00","22.00","23.00","24.00"]
[1,{"$f":"IF(B137=\"\",\"\",B137)","v":""},{"$f":"IF(C137=\"\",\"\",C137)","v":""},{"$f":"IF(D137=\"\",\"\",D137)","v":""},null,null,null,null,null,null,null,null,null,null,null,null,null,null,null,null,null,null,null,null,null,null,null,null,{"$f":"SUM(E169:AB169)","v":0}]
[2,{"$f":"IF(B138=\"\",\"\",B138)","v":""},"","",null,null,null,null,null,null,null,null,null,null,null,null,null,null,null,null,null,null,null,null,null,null,null,null,{"$f":"SUM(E170:AB170)","v":0}]
[3,{"$f":"IF(B139=\"\",\"\",B139)","v":""},"","",null,null,null,null,null,null,null,null,null,null,null,null,null,null,null,null,null,null,null,null,null,null,null,null,0]
[4,{"$f":"IF(B140=\"\",\"\",B140)","v":""},"","",null,null,null,null,null,null,null,null,null,null,null,null,null,null,null,null,null,null,null,null,null,null,null,null,0]
[5,{"$f":"IF(B141=\"\",\"\",B141)","v":""},"","",null,null,null,null,null,null,null,null,null,null,null,null,null,null,null,null,null,null,null,null,null,null,null,null,0]
[6,{"$f":"IF(B142=\"\",\"\",B142)","v":""},"","",null,null,null,null,null,null,null,null,null,null,null,null,null,null,null,null,null,null,null,null,null,null,null,null,0]
[7,{"$f":"IF(B143=\"\",\"\",B143)","v":""},"","",null,null,null,null,null,null,null,null,null,null,null,null,null,null,null,null,null,null,null,null,null,null,null,null,0]
[8,{"$f":"IF(B144=\"\",\"\",B144)","v":""},"","",null,null,null,null,null,null,null,null,null,null,null,null,null,null,null,null,null,null,null,null,null,null,null,null,0]
[9,{"$f":"IF(B145=\"\",\"\",B145)","v":""},"","",null,null,null,null,null,null,null,null,null,null,null,null,null,null,null,null,null,null,null,null,null,null,null,null,0]
[10,{"$f":"IF(B146=\"\",\"\",B146)","v":""},"","",null,null,null,null,null,null,null,null,null,null,null,null,null,null,null,null,null,null,null,null,null,null,null,null,0]
[11,{"$f":"IF(B147=\"\",\"\",B147)","v":""},"","",null,null,null,null,null,null,null,null,null,null,null,null,null,null,null,null,null,null,null,null,null,null,null,null,0]
[12,{"$f":"IF(B148=\"\",\"\",B148)","v":""},"","",null,null,null,null,null,null,null,null,null,null,null,null,null,null,null,null,null,null,null,null,null,null,null,null,0]
[13,{"$f":"IF(B149=\"\",\"\",B149)","v":""},"","",null,null,null,null,null,null,null,null,null,null,null,null,null,null,null,null,null,null,null,null,null,null,null,null,0]
[14,{"$f":"IF(B150=\"\",\"\",B150)","v":""},"","",null,null,null,null,null,null,null,null,null,null,null,null,null,null,null,null,null,null,null,null,null,null,null,null,0]
[15,{"$f":"IF(B151=\"\",\"\",B151)","v":""},"","",null,null,null,null,null,null,null,null,null,null,null,null,null,null,null,null,null,null,null,null,null,null,null,null,0]
[16,{"$f":"IF(B152=\"\",\"\",B152)","v":""},"","",null,null,null,null,null,null,null,null,null,null,null,null,null,null,null,null,null,null,null,null,null,null,null,null,0]
[17,{"$f":"IF(B153=\"\",\"\",B153)","v":""},"","",null,null,null,null,null,null,null,null,null,null,null,null,null,null,null,null,null,null,null,null,null,null,null,null,0]
[18,{"$f":"IF(B154=\"\",\"\",B154)","v":""},"","",null,null,null,null,null,null,null,null,null,null,null,null,null,null,null,null,null,null,null,null,null,null,null,null,{"$f":"SUM(E186:AB186)","v":0}]
[19,{"$f":"IF(B155=\"\",\"\",B155)","v":""},"","",null,null,null,null,null,null,null,null,null,null,null,null,null,null,null,null,null,null,null,null,null,null,null,null,0]
[20,{"$f":"IF(B156=\"\",\"\",B156)","v":""},"","",null,null,null,null,null,null,null,null,null,null,null,null,null,null,null,null,null,null,null,null,null,null,null,null,0]
[21,{"$f":"IF(B157=\"\",\"\",B157)","v":""},"","",null,null,null,null,null,null,null,null,null,null,null,null,null,null,null,null,null,null,null,null,null,null,null,null,0]
[22,{"$f":"IF(B158=\"\",\"\",B158)","v":""},"","",null,null,null,null,null,null,null,null,null,null,null,null,null,null,null,null,null,null,null,null,null,null,null,null,0]
[23,{"$f":"IF(B159=\"\",\"\",B159)","v":""},"","",null,null,null,null,null,null,null,null,null,null,null,null,null,null,null,null,null,null,null,null,null,null,null,null,0]
[24,{"$f":"IF(B160=\"\",\"\",B160)","v":""},"","",null,null,null,null,null,null,null,null,null,null,null,null,null,null,null,null,null,null,null,null,null,null,null,null,0]
[25,{"$f":"IF(B161=\"\",\"\",B161)","v":""},"","",null,null,null,null,null,null,null,null,null,null,null,null,null,null,null,null,null,null,null,null,null,null,null,null,0]
[26,{"$f":"IF(B162=\"\",\"\",B162)","v":""},"","",null,null,null,null,null,null,null,null,null,null,null,null,null,null,null,null,null,null,null,null,null,null,null,null,0]
[27,{"$f":"IF(B163=\"\",\"\",B163)","v":""},"","",null,null,null,null,null,null,null,null,null,null,null,null,null,null,null,null,null,null,null,null,null,null,null,null,0]
[28,{"$f":"IF(B164=\"\",\"\",B164)","v":""},"","",null,null,null,null,null,null,null,null,null,null,null,null,null,null,null,null,null,null,null,null,null,null,null,null,0]
[null,"Summa",null,null,{"$f":"SUM(E169:E196)","v":0},0,0,0,0,0,{"$f":"SUM(K169:K196)","v":0},0,0,0,0,0,0,0,0,0,0,0,0,0,0,0,0,0,{"$f":"SUM(AC169:AC196)","v":0}]
[]
[null,"Söndag",null,null,null,null,null,null,null,null,null,null,null,null,null,null,null,null,null,null,null,null,null,null,null,null,null,null,"Summa"]
[null,"Yrkeskategori","Utbildningsnivå","Utbildning","01.00","02.00","03.00","04.00","05.00","06.00","07.00","08.00","09.00","10.00","11.00","12.00","13.00","14.00","15.00","16.00","17.00","18.00","19.00","20.00","21.00","22.00","23.00","24.00"]
[1,{"$f":"IF(B169=\"\",\"\",B169)","v":""},{"$f":"IF(C169=\"\",\"\",C169)","v":""},{"$f":"IF(D169=\"\",\"\",D169)","v":""},null,null,null,null,null,null,null,null,null,null,null,null,null,null,null,null,null,null,null,null,null,null,null,null,{"$f":"SUM(E201:AB201)","v":0}]
[2,{"$f":"IF(B170=\"\",\"\",B170)","v":""},"","",null,null,null,null,null,null,null,null,null,null,null,null,null,null,null,null,null,null,null,null,null,null,null,null,{"$f":"SUM(E202:AB202)","v":0}]
[3,{"$f":"IF(B171=\"\",\"\",B171)","v":""},"","",null,null,null,null,null,null,null,null,null,null,null,null,null,null,null,null,null,null,null,null,null,null,null,null,0]
[4,{"$f":"IF(B172=\"\",\"\",B172)","v":""},"","",null,null,null,null,null,null,null,null,null,null,null,null,null,null,null,null,null,null,null,null,null,null,null,null,0]
[5,{"$f":"IF(B173=\"\",\"\",B173)","v":""},"","",null,null,null,null,null,null,null,null,null,null,null,null,null,null,null,null,null,null,null,null,null,null,null,null,0]
[6,{"$f":"IF(B174=\"\",\"\",B174)","v":""},"","",null,null,null,null,null,null,null,null,null,null,null,null,null,null,null,null,null,null,null,null,null,null,null,null,0]
[7,{"$f":"IF(B175=\"\",\"\",B175)","v":""},"","",null,null,null,null,null,null,null,null,null,null,null,null,null,null,null,null,null,null,null,null,null,null,null,null,0]
[8,{"$f":"IF(B176=\"\",\"\",B176)","v":""},"","",null,null,null,null,null,null,null,null,null,null,null,null,null,null,null,null,null,null,null,null,null,null,null,null,0]
[9,{"$f":"IF(B177=\"\",\"\",B177)","v":""},"","",null,null,null,null,null,null,null,null,null,null,null,null,null,null,null,null,null,null,null,null,null,null,null,null,0]
[10,{"$f":"IF(B178=\"\",\"\",B178)","v":""},"","",null,null,null,null,null,null,null,null,null,null,null,null,null,null,null,null,null,null,null,null,null,null,null,null,{"$f":"SUM(E210:AB210)","v":0}]
[11,{"$f":"IF(B179=\"\",\"\",B179)","v":""},"","",null,null,null,null,null,null,null,null,null,null,null,null,null,null,null,null,null,null,null,null,null,null,null,null,0]
[12,{"$f":"IF(B180=\"\",\"\",B180)","v":""},"","",null,null,null,null,null,null,null,null,null,null,null,null,null,null,null,null,null,null,null,null,null,null,null,null,0]
[13,{"$f":"IF(B181=\"\",\"\",B181)","v":""},"","",null,null,null,null,null,null,null,null,null,null,null,null,null,null,null,null,null,null,null,null,null,null,null,null,0]
[14,{"$f":"IF(B182=\"\",\"\",B182)","v":""},"","",null,null,null,null,null,null,null,null,null,null,null,null,null,null,null,null,null,null,null,null,null,null,null,null,0]
[15,{"$f":"IF(B183=\"\",\"\",B183)","v":""},"","",null,null,null,null,null,null,null,null,null,null,null,null,null,null,null,null,null,null,null,null,null,null,null,null,0]
[16,{"$f":"IF(B184=\"\",\"\",B184)","v":""},"","",null,null,null,null,null,null,null,null,null,null,null,null,null,null,null,null,null,null,null,null,null,null,null,null,0]
[17,{"$f":"IF(B185=\"\",\"\",B185)","v":""},"","",null,null,null,null,null,null,null,null,null,null,null,null,null,null,null,null,null,null,null,null,null,null,null,null,0]
[18,{"$f":"IF(B186=\"\",\"\",B186)","v":""},"","",null,null,null,null,null,null,null,null,null,null,null,null,null,null,null,null,null,null,null,null,null,null,null,null,0]
[19,{"$f":"IF(B187=\"\",\"\",B187)","v":""},"","",null,null,null,null,null,null,null,null,null,null,null,null,null,null,null,null,null,null,null,null,null,null,null,null,0]
[20,{"$f":"IF(B188=\"\",\"\",B188)","v":""},"","",null,null,null,null,null,null,null,null,null,null,null,null,null,null,null,null,null,null,null,null,null,null,null,null,0]
[21,{"$f":"IF(B189=\"\",\"\",B189)","v":""},"","",null,null,null,null,null,null,null,null,null,null,null,null,null,null,null,null,null,null,null,null,null,null,null,null,0]
[22,{"$f":"IF(B190=\"\",\"\",B190)","v":""},"","",null,null,null,null,null,null,null,null,null,null,null,null,null,null,null,null,null,null,null,null,null,null,null,null,0]
[23,{"$f":"IF(B191=\"\",\"\",B191)","v":""},"","",null,null,null,null,null,null,null,null,null,null,null,null,null,null,null,null,null,null,null,null,null,null,null,null,0]
[24,{"$f":"IF(B192=\"\",\"\",B192)","v":""},"","",null,null,null,null,null,null,null,null,null,null,null,null,null,null,null,null,null,null,null,null,null,null,null,null,0]
[25,{"$f":"IF(B193=\"\",\"\",B193)","v":""},"","",null,null,null,null,null,null,null,null,null,null,null,null,null,null,null,null,null,null,null,null,null,null,null,null,0]
[26,{"$f":"IF(B194=\"\",\"\",B194)","v":""},"","",null,null,null,null,null,null,null,null,null,null,null,null,null,null,null,null,null,null,null,null,null,null,null,null,0]
[27,{"$f":"IF(B195=\"\",\"\",B195)","v":""},"","",null,null,null,null,null,null,null,null,null,null,null,null,null,null,null,null,null,null,null,null,null,null,null,null,0]
[28,{"$f":"IF(B196=\"\",\"\",B196)","v":""},"","",null,null,null,null,null,null,null,null,null,null,null,null,null,null,null,null,null,null,null,null,null,null,null,null,0]
[null,"Summa",null,null,{"$f":"SUM(E201:E228)","v":0},0,0,0,0,0,0,0,0,0,0,0,0,0,0,0,0,0,0,0,0,0,0,0,{"$f":"SUM(AC201:AC228)","v":0}]
[]
[]
[]
[null,"TOTALT UNDER VECKAN"]
[null,"Yrkeskategori","Utbildningsnivå","Utbildning","01.00","02.00","03.00","04.00","05.00","06.00","07.00","08.00","09.00","10.00","11.00","12.00","13.00","14.00","15.00","16.00","17.00","18.00","19.00","20.00","21.00","22.00","23.00","24.00"]
[1,{"$f":"IF(B201=\"\",\"\",B201)","v":""},{"$f":"IF(C201=\"\",\"\",C201)","v":""},{"$f":"IF(D201=\"\",\"\",D201)","v":""},{"$f":"E9+E41+E73+E105+E137+E169+E201","v":0},0,0,0,0,0,0,0,0,0,0,0,0,0,0,0,0,0,0,0,0,0,0,0,0]
[2,{"$f":"IF(B202=\"\",\"\",B202)","v":""},"","",{"$f":"E10+E42+E74+E106+E138+E170+E202","v":0},0,0,0,0,0,0,0,0,0,0,0,0,0,0,0,0,0,0,0,0,0,0,0,0]
[3,{"$f":"IF(B203=\"\",\"\",B203)","v":""},"","",{"$f":"E11+E43+E75+E107+E139+E171+E203","v":0},0,0,0,0,0,0,0,0,0,0,0,0,0,0,0,0,0,0,0,0,0,0,0,0]
[4,{"$f":"IF(B204=\"\",\"\",B204)","v":""},"","",{"$f":"E12+E44+E76+E108+E140+E172+E204","v":0},0,0,0,0,0,0,0,0,0,0,0,0,0,0,0,0,0,0,0,0,0,0,0,0]
[5,{"$f":"IF(B205=\"\",\"\",B205)","v":""},"","",{"$f":"E13+E45+E77+E109+E141+E173+E205","v":0},0,0,0,0,0,0,0,0,0,0,0,0,0,0,0,0,0,0,0,0,0,0,0,0]
[6,{"$f":"IF(B206=\"\",\"\",B206)","v":""},"","",{"$f":"E14+E46+E78+E110+E142+E174+E206","v":0},{"$f":"F14+F46+F78+F110+F142+F174+F206","v":0},0,0,0,0,0,0,0,0,0,0,0,0,0,0,0,0,0,0,0,0,0,0,{"$f":"AC14+AC46+AC78+AC110+AC142+AC174+AC206","v":0}]
[7,{"$f":"IF(B207=\"\",\"\",B207)","v":""},"","",{"$f":"E15+E47+E79+E111+E143+E175+E207","v":0},0,0,0,0,0,0,0,0,0,0,0,0,0,0,0,0,0,0,0,0,0,0,0,0]
[8,{"$f":"IF(B208=\"\",\"\",B208)","v":""},"","",{"$f":"E16+E48+E80+E112+E144+E176+E208","v":0},0,0,0,0,0,0,0,0,0,0,0,0,0,0,0,0,0,0,0,0,0,0,0,0]
[9,{"$f":"IF(B209=\"\",\"\",B209)","v":""},"","",{"$f":"E17+E49+E81+E113+E145+E177+E209","v":0},0,0,0,0,0,0,0,0,0,0,0,0,0,0,0,0,0,0,0,0,0,0,0,0]
[10,{"$f":"IF(B210=\"\",\"\",B210)","v":""},"","",{"$f":"E18+E50+E82+E114+E146+E178+E210","v":0},{"$f":"F18+F50+F82+F114+F146+F178+F210","v":0},0,0,0,0,0,0,0,0,0,0,0,0,0,0,0,0,0,0,0,0,0,0,0]
[11,{"$f":"IF(B211=\"\",\"\",B211)","v":""},"","",{"$f":"E19+E51+E83+E115+E147+E179+E211","v":0},0,0,0,0,0,0,0,0,0,0,0,0,0,0,0,0,0,0,0,0,0,0,0,0]
[12,{"$f":"IF(B212=\"\",\"\",B212)","v":""},"","",{"$f":"E20+E52+E84+E116+E148+E180+E212","v":0},0,0,0,0,0,0,0,0,0,0,0,0,0,0,0,0,0,0,0,0,0,0,0,0]
[13,{"$f":"IF(B213=\"\",\"\",B213)","v":""},"","",{"$f":"E21+E53+E85+E117+E149+E181+E213","v":0},0,0,0,0,0,0,0,0,0,0,0,0,0,0,0,0,0,0,0,0,0,0,0,0]
[14,{"$f":"IF(B214=\"\",\"\",B214)","v":""},"","",{"$f":"E22+E54+E86+E118+E150+E182+E214","v":0},0,0,0,0,0,0,0,0,0,0,0,0,0,0,0,0,0,0,0,0,0,0,0,0]
[15,{"$f":"IF(B215=\"\",\"\",B215)","v":""},"","",{"$f":"E23+E55+E87+E119+E151+E183+E215","v":0},0,0,0,0,0,0,0,0,0,0,0,0,0,0,0,0,0,0,0,0,0,0,0,0]
[16,{"$f":"IF(B216=\"\",\"\",B216)","v":""},"","",{"$f":"E19+E46+E88+E120+E152+E184+E216","v":0},0,0,0,0,0,0,0,0,0,0,0,0,0,0,0,0,0,0,0,0,0,0,0,{"$f":"AC24+AC56+AC88+AC120+AC152+AC184+AC216","v":0}]
[17,{"$f":"IF(B217=\"\",\"\",B217)","v":""},"","",{"$f":"E20+E47+E89+E121+E153+E185+E217","v":0},0,0,0,0,0,0,0,0,0,0,0,0,0,0,0,0,0,0,0,0,0,0,0,0]
[18,{"$f":"IF(B218=\"\",\"\",B218)","v":""},"","",{"$f":"E21+E48+E90+E122+E154+E186+E218","v":0},0,0,0,0,0,0,0,0,0,0,0,0,0,0,0,0,0,0,0,0,0,0,0,0]
[19,{"$f":"IF(B219=\"\",\"\",B219)","v":""},"","",{"$f":"E22+E49+E91+E123+E155+E187+E219","v":0},{"$f":"F22+F49+F91+F123+F155+F187+F219","v":0},0,0,0,0,0,0,0,0,0,0,0,0,0,0,0,0,0,0,0,0,0,0,0]
[20,{"$f":"IF(B220=\"\",\"\",B220)","v":""},"","",{"$f":"E23+E50+E92+E124+E156+E188+E220","v":0},{"$f":"F23+F50+F92+F124+F156+F188+F220","v":0},0,0,0,0,0,0,0,0,0,0,0,0,0,0,0,0,0,0,0,0,0,0,0]
[21,{"$f":"IF(B221=\"\",\"\",B221)","v":""},"","",{"$f":"E29+E61+E93+E125+E157+E189+E221","v":0},{"$f":"F29+F61+F93+F125+F157+F189+F221","v":0},0,0,0,0,0,0,0,0,0,0,0,0,0,0,0,0,0,0,0,0,0,0,0]
[22,{"$f":"IF(B222=\"\",\"\",B222)","v":""},"","",{"$f":"E30+E62+E94+E126+E158+E190+E222","v":0},{"$f":"F30+F62+F94+F126+F158+F190+F222","v":0},0,0,0,0,0,0,0,0,0,0,0,0,0,0,0,0,0,0,0,0,0,0,0]
[23,{"$f":"IF(B223=\"\",\"\",B223)","v":""},"","",{"$f":"E31+E63+E95+E127+E159+E191+E223","v":0},0,0,0,0,0,0,0,0,0,0,0,0,0,0,0,0,0,0,0,0,0,0,0,{"$f":"AC31+AC63+AC95+AC127+AC159+AC191+AC223","v":0}]
[24,{"$f":"IF(B224=\"\",\"\",B224)","v":""},"","",{"$f":"E32+E64+E96+E128+E160+E192+E224","v":0},0,0,0,0,0,0,0,0,0,0,0,0,0,0,0,0,0,0,0,0,0,0,0,0]
[25,{"$f":"IF(B225=\"\",\"\",B225)","v":""},"","",{"$f":"E33+E65+E97+E129+E161+E193+E225","v":0},0,0,0,0,0,0,0,0,0,0,0,0,0,0,0,0,0,0,0,0,0,0,0,0]
[26,{"$f":"IF(B226=\"\",\"\",B226)","v":""},"","",{"$f":"E34+E66+E98+E130+E162+E194+E226","v":0},{"$f":"F34+F66+F98+F130+F162+F194+F226","v":0},0,0,0,0,0,0,0,0,0,0,0,0,0,0,0,0,0,0,0,0,0,0,0]
[27,{"$f":"IF(B227=\"\",\"\",B227)","v":""},"","",{"$f":"E35+E67+E99+E131+E163+E195+E227","v":0},{"$f":"F35+F67+F99+F131+F163+F195+F227","v":0},0,0,0,0,0,0,0,0,0,0,0,0,0,0,0,0,0,0,0,0,0,0,{"$f":"AC35+AC67+AC99+AC131+AC163+AC195+AC227","v":0}]
[28,{"$f":"IF(B228=\"\",\"\",B228)","v":""},"","",{"$f":"E36+E68+E100+E132+E164+E196+E228","v":0},{"$f":"F36+F68+F100+F132+F164+F196+F228","v":0},0,0,0,0,0,0,0,0,0,0,0,0,0,0,0,0,0,0,0,0,0,0,{"$f":"AC36+AC68+AC100+AC132+AC164+AC196+AC228","v":0}]
[null,"Summa",null,null,{"$f":"SUM(E235:E262)","v":0},0,0,0,0,0,0,0,0,0,0,0,0,0,0,0,0,0,0,0,0,0,0,0,{"$f":"SUM(AC235:AC262)","v":0}]

{"sheet":"ToDo","index":2,"n_rows":11,"n_cols":12,"rows_kept":11,"cut":false,"hidden":true,"merged":[]}
[]
[]
[]
[]
[null,"SocialSurveyJenny",null,null,null,{"$f":"SUM(F7:F14)*1250","v":11250}]
[null,"_Name","_Description","_Status","_Progress","_hours","_Prio","_Comment","_responisible","_startDate","_endDate","_Status"]
[null,"CleanDesign","Clean up design, set dropdowns, color-code, can we understand their explaination?",null,null,3,null,null,"YH","2018-04-06","2018-04-10"]
[null,"CreateIntro-sheet","Set up an intro-sheet with, dropdown from Kommun-namn",null,null,1,null,null,"YH","2018-04-06","2018-04-10"]
[null,"Jenny:Fill in testdata","Fill in 3 cases",null,null,null,null,null,"Client","2018-04-10","2018-04-16"]
[null,"Fix Feedback from tests","Adjust after testing",null,null,2,null,null,"YH","2018-04-16","2018-04-20"]
[null,"Build masterfile","Import from folder, put in DB, use Pivottables to present. Is used to show to Kommun-leaders which suppliers are available.",null,null,3,null,null,"YH","2018-04-20","2018-04-22"]

{"sheet":"Admin","index":3,"n_rows":8,"n_cols":7,"rows_kept":8,"cut":false,"hidden":true,"merged":[]}
[]
[null,"Yrkeskategori","Utbildningsnivå"]
[null,"Föreståndare","Högskola 180 hp"]
[null,"Behandlingspedagog","2 år eftergymn. utb.",null,null,null,"UnlockedColor 1"]
[null,"Behandlingsassistent","Ingen efterfrågad utb.",null,null,null,"UnlockedColor 2"]
[null,"Samordnare",null,null,null,null,"UnlockedColor 3"]
[null,"Psykolog",null,null,null,null,"UnlockedColor 4"]
[null,"Övriga kategorier",null,null,null,null,"UnlockedColor 5"]